[Event "Titled Tuesday Blitz October 11 Early 2022"]
[White "Azarov, Sergei"]
[Black "Villamayor, Buenaventura"]
[WhiteFideId "13501470"]
[BlackFideId "5200393"]
[WhiteElo "2494"]
[BlackElo "2301"]
[Result "1-0"]
[Round "01"]
[TimeControl "180+1"]
[Date "2022.10.12"]
[WhiteClock "0:00:13"]
[BlackClock "0:00:02"]

1. e4 {[%clk 0:02:59]}  c5 {[%clk 0:02:57]} 2. Nf3 {[%clk 0:03:00]}  Nc6 {[%clk 0:02:57]} 3. d4 {[%clk 0:03:00]}  cxd4 {[%clk 0:02:58]} 4. Nxd4 {[%clk 0:03:00]}  Nf6 {[%clk 0:02:58]} 5. Nc3 {[%clk 0:03:01]}  e5 {[%clk 0:02:59]} 6. Ndb5 {[%clk 0:03:01]}  d6 {[%clk 0:02:59]} 7. Bg5 {[%clk 0:03:01]}  a6 {[%clk 0:02:59]} 8. Na3 {[%clk 0:03:02]}  b5 {[%clk 0:03:00]} 9. Bxf6 {[%clk 0:03:02]}  gxf6 {[%clk 0:02:59]} 10. Nd5 {[%clk 0:03:03]}  f5 {[%clk 0:03:00]} 11. c3 {[%clk 0:02:58]}  Bg7 {[%clk 0:02:55]} 12. Bd3 {[%clk 0:02:57]}  Be6 {[%clk 0:02:55]} 13. Nxb5 {[%clk 0:02:57]}  axb5 {[%clk 0:02:36]} 14. Bxb5 {[%clk 0:02:58]}  Bd7 {[%clk 0:02:20]} 15. exf5 {[%clk 0:02:57]}  Nb8 {[%clk 0:02:13]} 16. a4 {[%clk 0:02:48]}  O-O {[%clk 0:01:46]} 17. f6 {[%clk 0:02:44]}  Bxf6 {[%clk 0:01:46]} 18. Nxf6+ {[%clk 0:02:42]}  Qxf6 {[%clk 0:01:46]} 19. Bxd7 {[%clk 0:02:41]}  Nxd7 {[%clk 0:01:46]} 20. Qg4+ {[%clk 0:02:41]}  Qg6 {[%clk 0:01:35]} 21. Qxd7 {[%clk 0:02:41]}  Qe4+ {[%clk 0:01:35]} 22. Kf1 {[%clk 0:02:37]}  Rfd8 {[%clk 0:01:21]} 23. Qe7 {[%clk 0:02:22]}  Rdb8 {[%clk 0:01:02]} 24. Qg5+ {[%clk 0:02:14]}  Kh8 {[%clk 0:01:00]} 25. Qf6+ {[%clk 0:02:08]}  Kg8 {[%clk 0:00:58]} 26. Qg5+ {[%clk 0:01:46]}  Kh8 {[%clk 0:00:45]} 27. Qd2 {[%clk 0:01:20]}  Rxa4 {[%clk 0:00:16]} 28. Re1 {[%clk 0:01:17]}  Qg6 {[%clk 0:00:15]} 29. b4 {[%clk 0:01:01]}  Rba8 {[%clk 0:00:16]} 30. g3 {[%clk 0:00:55]}  Ra2 {[%clk 0:00:13]} 31. Qe3 {[%clk 0:00:54]}  Rc2 {[%clk 0:00:13]} 32. Kg2 {[%clk 0:00:50]}  Raa2 {[%clk 0:00:13]} 33. Rhf1 {[%clk 0:00:49]}  Ra3 {[%clk 0:00:11]} 34. Rc1 {[%clk 0:00:35]}  Raxc3 {[%clk 0:00:11]} 35. Qxc3 {[%clk 0:00:34]}  Rxc3 {[%clk 0:00:12]} 36. Rxc3 {[%clk 0:00:35]}  Qe4+ {[%clk 0:00:12]} 37. Rf3 {[%clk 0:00:35]}  Qb7 {[%clk 0:00:07]} 38. Rb1 {[%clk 0:00:23]}  Kg7 {[%clk 0:00:06]} 39. b5 {[%clk 0:00:22]}  f5 {[%clk 0:00:05]} 40. b6 {[%clk 0:00:21]}  Kf6 {[%clk 0:00:05]} 41. Rb3 {[%clk 0:00:20]}  Ke6 {[%clk 0:00:05]} 42. Kg1 {[%clk 0:00:19]}  e4 {[%clk 0:00:03]} 43. Rfc3 {[%clk 0:00:19]}  Qd5 {[%clk 0:00:01]} 44. b7 {[%clk 0:00:18]}  Qd1+ {[%clk 0:00:01]} 45. Kg2 {[%clk 0:00:18]}  f4 {[%clk 0:00:01]} 46. b8=Q {[%clk 0:00:13]}  f3+ {[%clk 0:00:02]} 47. Kh3 {[%clk 0:00:13]}  Qf1+ {[%clk 0:00:02]} 48. Kh4 {[%clk 0:00:13]} 1-0


[Site "https://www.chess.com"]

[Event "Titled Tuesday Blitz October 11 Early 2022"]
[White "Baruch, Liam"]
[Black "Shaik Sumer Arsh"]
[WhiteFideId "14322064"]
[BlackFideId "45020000"]
[WhiteElo "1984"]
[BlackElo "2190"]
[Result "0-1"]
[Round "01"]
[TimeControl "180+1"]
[Date "2022.10.12"]
[WhiteClock "0:02:26"]
[BlackClock "0:01:27"]

1. e4 {[%clk 0:02:59]}  c5 {[%clk 0:02:56]} 2. Nf3 {[%clk 0:02:59]}  e6 {[%clk 0:02:57]} 3. d4 {[%clk 0:02:59]}  cxd4 {[%clk 0:02:58]} 4. Nxd4 {[%clk 0:03:00]}  a6 {[%clk 0:02:58]} 5. Nc3 {[%clk 0:03:00]}  Bc5 {[%clk 0:02:41]} 6. Be2 {[%clk 0:02:59]}  Qc7 {[%clk 0:02:32]} 7. O-O {[%clk 0:02:56]}  b5 {[%clk 0:02:22]} 8. Be3 {[%clk 0:02:53]}  d6 {[%clk 0:02:05]} 9. Ndxb5 {[%clk 0:02:49]}  axb5 {[%clk 0:02:05]} 10. Nxb5 {[%clk 0:02:46]}  Qb6 {[%clk 0:01:54]} 11. Bxc5 {[%clk 0:02:40]}  Qxc5 {[%clk 0:01:55]} 12. Nxd6+ {[%clk 0:02:39]}  Ke7 {[%clk 0:01:54]} 13. b4 {[%clk 0:02:35]}  Qxd6 {[%clk 0:01:53]} 14. Qc1 {[%clk 0:02:32]}  Nf6 {[%clk 0:01:51]} 15. c4 {[%clk 0:02:32]}  Nc6 {[%clk 0:01:50]} 16. c5 {[%clk 0:02:32]}  Qe5 {[%clk 0:01:44]} 17. b5 {[%clk 0:02:31]}  Nd4 {[%clk 0:01:29]} 18. Bd3 {[%clk 0:02:28]}  Ng4 {[%clk 0:01:27]} 19. h3 {[%clk 0:02:26]}  Qh2# {[%clk 0:01:27]} 0-1


[Site "https://www.chess.com"]

[Event "Titled Tuesday Blitz October 11 Early 2022"]
[White "Bethke, Richard"]
[Black "Wirig, Anthony"]
[WhiteFideId "12959243"]
[BlackFideId "615013"]
[WhiteElo "2369"]
[BlackElo "2474"]
[Result "1-0"]
[Round "01"]
[TimeControl "180+1"]
[Date "2022.10.11"]
[WhiteClock "0:00:05"]
[BlackClock "0:00:14"]

1. e4 {[%clk 0:03:00]}  c5 {[%clk 0:02:56]} 2. Nf3 {[%clk 0:03:00]}  e6 {[%clk 0:02:56]} 3. d4 {[%clk 0:03:00]}  cxd4 {[%clk 0:02:57]} 4. Nxd4 {[%clk 0:03:00]}  Nf6 {[%clk 0:02:58]} 5. Nc3 {[%clk 0:03:00]}  Nc6 {[%clk 0:02:58]} 6. Ndb5 {[%clk 0:02:59]}  Bc5 {[%clk 0:02:57]} 7. Nd6+ {[%clk 0:02:55]}  Ke7 {[%clk 0:02:57]} 8. Bf4 {[%clk 0:02:55]}  e5 {[%clk 0:02:58]} 9. Nf5+ {[%clk 0:02:54]}  Kf8 {[%clk 0:02:58]} 10. Bg5 {[%clk 0:02:45]}  d6 {[%clk 0:02:56]} 11. Bc4 {[%clk 0:02:39]}  Be6 {[%clk 0:02:48]} 12. Bd5 {[%clk 0:02:20]}  h6 {[%clk 0:02:40]} 13. Bh4 {[%clk 0:02:13]}  g6 {[%clk 0:02:27]} 14. Bxe6 {[%clk 0:01:46]}  fxe6 {[%clk 0:02:22]} 15. Nxd6 {[%clk 0:01:45]}  g5 {[%clk 0:01:53]} 16. Nxb7 {[%clk 0:01:45]}  Qxd1+ {[%clk 0:01:50]} 17. Rxd1 {[%clk 0:01:44]}  Be7 {[%clk 0:01:39]} 18. Bg3 {[%clk 0:01:40]}  Rb8 {[%clk 0:01:38]} 19. Nd6 {[%clk 0:01:35]}  Rxb2 {[%clk 0:01:37]} 20. Rd2 {[%clk 0:01:16]}  Rb4 {[%clk 0:01:16]} 21. O-O {[%clk 0:01:09]}  Kg7 {[%clk 0:01:13]} 22. a3 {[%clk 0:01:04]}  Rd4 {[%clk 0:01:10]} 23. Rxd4 {[%clk 0:00:52]}  exd4 {[%clk 0:01:11]} 24. Ne2 {[%clk 0:00:51]}  Nh5 {[%clk 0:00:40]} 25. Nxd4 {[%clk 0:00:31]}  Nxg3 {[%clk 0:00:33]} 26. fxg3 {[%clk 0:00:31]}  Bxd6 {[%clk 0:00:26]} 27. Nxc6 {[%clk 0:00:30]}  Rc8 {[%clk 0:00:26]} 28. Nb4 {[%clk 0:00:20]}  a5 {[%clk 0:00:20]} 29. Nd3 {[%clk 0:00:14]}  Rxc2 {[%clk 0:00:20]} 30. a4 {[%clk 0:00:09]}  Rd2 {[%clk 0:00:07]} 31. e5 {[%clk 0:00:06]}  Bc7 {[%clk 0:00:05]} 32. Nf2 {[%clk 0:00:01]}  Bb6 {[%clk 0:00:05]} 33. g4 {[%clk 0:00:01]}  Bd4 {[%clk 0:00:04]} 34. g3 {[%clk 0:00:01]}  Ra2 {[%clk 0:00:05]} 35. Kg2 {[%clk 0:00:01]}  Rxa4 {[%clk 0:00:05]} 36. Rd1 {[%clk 0:00:01]}  Ra2 {[%clk 0:00:06]} 37. Rxd4 {[%clk 0:00:01]}  a4 {[%clk 0:00:07]} 38. Rd7+ {[%clk 0:00:02]}  Kf8 {[%clk 0:00:06]} 39. Ra7 {[%clk 0:00:03]}  Ke8 {[%clk 0:00:05]} 40. h4 {[%clk 0:00:03]}  Kd8 {[%clk 0:00:05]} 41. h5 {[%clk 0:00:02]}  Kc8 {[%clk 0:00:05]} 42. Kf3 {[%clk 0:00:03]}  Kb8 {[%clk 0:00:05]} 43. Ra5 {[%clk 0:00:02]}  Kb7 {[%clk 0:00:06]} 44. Ne4 {[%clk 0:00:02]}  Kb6 {[%clk 0:00:06]} 45. Ra8 {[%clk 0:00:03]}  Kb7 {[%clk 0:00:06]} 46. Rxa4 {[%clk 0:00:02]}  Rh2 {[%clk 0:00:04]} 47. Rd4 {[%clk 0:00:02]}  Kc6 {[%clk 0:00:05]} 48. Rd6+ {[%clk 0:00:02]}  Kb5 {[%clk 0:00:06]} 49. Rxe6 {[%clk 0:00:03]}  Kc4 {[%clk 0:00:07]} 50. Rxh6 {[%clk 0:00:03]}  Kd4 {[%clk 0:00:08]} 51. Nxg5 {[%clk 0:00:03]}  Ra2 {[%clk 0:00:08]} 52. Ne6+ {[%clk 0:00:03]}  Kxe5 {[%clk 0:00:08]} 53. Nf4 {[%clk 0:00:04]}  Ra3+ {[%clk 0:00:09]} 54. Kg2 {[%clk 0:00:04]}  Ke4 {[%clk 0:00:10]} 55. Re6+ {[%clk 0:00:04]}  Kd4 {[%clk 0:00:10]} 56. h6 {[%clk 0:00:05]}  Ra2+ {[%clk 0:00:11]} 57. Kh3 {[%clk 0:00:05]}  Ra7 {[%clk 0:00:12]} 58. Rg6 {[%clk 0:00:05]}  Ke4 {[%clk 0:00:12]} 59. Rg7 {[%clk 0:00:05]}  Kf3 {[%clk 0:00:13]} 60. Rxa7 {[%clk 0:00:05]}  Kf2 {[%clk 0:00:14]} 61. h7 {[%clk 0:00:05]} 1-0


[Site "https://www.chess.com"]

[Event "Titled Tuesday Blitz October 11 Early 2022"]
[White "Blokhin, Sofia"]
[Black "Rosen, Eric"]
[WhiteFideId "4508190"]
[BlackFideId "2032562"]
[WhiteElo "2005"]
[BlackElo "2362"]
[Result "0-1"]
[Round "01"]
[TimeControl "180+1"]
[Date "2022.10.12"]
[WhiteClock "0:00:02"]
[BlackClock "0:00:36"]

1. d4 {[%clk 0:02:57]}  d5 {[%clk 0:02:45]} 2. c4 {[%clk 0:02:56]}  e6 {[%clk 0:02:44]} 3. Nc3 {[%clk 0:02:54]}  Nf6 {[%clk 0:02:44]} 4. e3 {[%clk 0:02:54]}  a6 {[%clk 0:02:43]} 5. cxd5 {[%clk 0:02:53]}  exd5 {[%clk 0:02:43]} 6. Nf3 {[%clk 0:02:53]}  Be7 {[%clk 0:02:42]} 7. Bd3 {[%clk 0:02:54]}  O-O {[%clk 0:02:40]} 8. O-O {[%clk 0:02:53]}  Re8 {[%clk 0:02:40]} 9. Ne5 {[%clk 0:02:53]}  Nbd7 {[%clk 0:02:38]} 10. f4 {[%clk 0:02:52]}  Nf8 {[%clk 0:02:36]} 11. Qf3 {[%clk 0:02:45]}  c5 {[%clk 0:02:35]} 12. g4 {[%clk 0:02:33]}  Ne4 {[%clk 0:01:21]} 13. Nxd5 {[%clk 0:01:52]}  Qxd5 {[%clk 0:01:21]} 14. Bxe4 {[%clk 0:01:51]}  Qd6 {[%clk 0:01:21]} 15. d5 {[%clk 0:01:42]}  Bd7 {[%clk 0:01:13]} 16. Nc4 {[%clk 0:01:35]}  Qc7 {[%clk 0:01:12]} 17. Bd2 {[%clk 0:01:22]}  Bb5 {[%clk 0:01:04]} 18. Ba5 {[%clk 0:01:13]}  Qb8 {[%clk 0:01:01]} 19. b3 {[%clk 0:01:00]}  Nd7 {[%clk 0:00:56]} 20. a4 {[%clk 0:00:46]}  Bxc4 {[%clk 0:00:57]} 21. bxc4 {[%clk 0:00:43]}  Bf6 {[%clk 0:00:57]} 22. Rab1 {[%clk 0:00:34]}  b6 {[%clk 0:00:57]} 23. Qh3 {[%clk 0:00:27]}  Rxe4 {[%clk 0:00:50]} 24. g5 {[%clk 0:00:28]}  Qd6 {[%clk 0:00:41]} 25. gxf6 {[%clk 0:00:15]}  bxa5 {[%clk 0:00:41]} 26. fxg7 {[%clk 0:00:14]}  Rae8 {[%clk 0:00:38]} 27. Rb7 {[%clk 0:00:11]}  Rxe3 {[%clk 0:00:35]} 28. Qxd7 {[%clk 0:00:09]}  Qg6+ {[%clk 0:00:35]} 29. Kh1 {[%clk 0:00:06]}  Re2 {[%clk 0:00:36]} 30. Rg1 {[%clk 0:00:02]}  Qe4+ {[%clk 0:00:35]} 31. Rg2 {[%clk 0:00:02]}  Qxg2# {[%clk 0:00:36]} 0-1


[Site "https://www.chess.com"]

[Event "Titled Tuesday Blitz October 11 Early 2022"]
[White "Ciuffoletti, Paolo"]
[Black "Janaszak, Dawid"]
[WhiteFideId "807630"]
[BlackFideId "1119206"]
[WhiteElo "2143"]
[BlackElo "2226"]
[Result "0-1"]
[Round "01"]
[TimeControl "180+1"]
[Date "2022.10.12"]
[WhiteClock "0:00:11"]
[BlackClock "0:00:52"]

1. e4 {[%clk 0:03:00]}  c5 {[%clk 0:02:59]} 2. d4 {[%clk 0:03:00]}  cxd4 {[%clk 0:02:57]} 3. c3 {[%clk 0:03:00]}  e5 {[%clk 0:02:57]} 4. Nf3 {[%clk 0:02:59]}  Nc6 {[%clk 0:02:57]} 5. Bc4 {[%clk 0:02:58]}  Nf6 {[%clk 0:02:56]} 6. Ng5 {[%clk 0:02:52]}  d5 {[%clk 0:02:57]} 7. exd5 {[%clk 0:02:51]}  Na5 {[%clk 0:02:57]} 8. Bb5+ {[%clk 0:02:43]}  Bd7 {[%clk 0:02:57]} 9. Qa4 {[%clk 0:02:36]}  Bd6 {[%clk 0:02:43]} 10. Bxd7+ {[%clk 0:02:13]}  Nxd7 {[%clk 0:02:42]} 11. Ne6 {[%clk 0:01:56]}  fxe6 {[%clk 0:02:42]} 12. dxe6 {[%clk 0:01:55]}  Nc6 {[%clk 0:02:29]} 13. exd7+ {[%clk 0:01:50]}  Qxd7 {[%clk 0:02:30]} 14. O-O {[%clk 0:01:49]}  O-O {[%clk 0:02:29]} 15. cxd4 {[%clk 0:01:40]}  exd4 {[%clk 0:02:29]} 16. Nd2 {[%clk 0:01:22]}  Rae8 {[%clk 0:02:27]} 17. Nc4 {[%clk 0:01:00]}  Bb8 {[%clk 0:02:27]} 18. Bd2 {[%clk 0:00:58]}  Qc7 {[%clk 0:02:14]} 19. g3 {[%clk 0:00:58]}  a6 {[%clk 0:02:13]} 20. Qb3 {[%clk 0:00:55]}  Kh8 {[%clk 0:02:13]} 21. Rae1 {[%clk 0:00:54]}  b5 {[%clk 0:02:13]} 22. Na3 {[%clk 0:00:44]}  Ne5 {[%clk 0:02:12]} 23. Bf4 {[%clk 0:00:39]}  Qc6 {[%clk 0:01:53]} 24. Bxe5 {[%clk 0:00:32]}  Bxe5 {[%clk 0:01:53]} 25. Qd3 {[%clk 0:00:30]}  Qd5 {[%clk 0:01:39]} 26. Nc2 {[%clk 0:00:29]}  Bf6 {[%clk 0:01:35]} 27. b3 {[%clk 0:00:28]}  Rc8 {[%clk 0:01:34]} 28. Nb4 {[%clk 0:00:26]}  Qd6 {[%clk 0:01:34]} 29. a3 {[%clk 0:00:25]}  Rc3 {[%clk 0:01:34]} 30. Qd2 {[%clk 0:00:24]}  Rxb3 {[%clk 0:01:33]} 31. Qa2 {[%clk 0:00:22]}  Rc3 {[%clk 0:01:27]} 32. Re6 {[%clk 0:00:22]}  Qd8 {[%clk 0:01:20]} 33. Rfe1 {[%clk 0:00:22]}  d3 {[%clk 0:01:18]} 34. Nd5 {[%clk 0:00:20]}  Rc2 {[%clk 0:01:09]} 35. Qb3 {[%clk 0:00:18]}  d2 {[%clk 0:01:09]} 36. Rd1 {[%clk 0:00:17]}  Rc1 {[%clk 0:01:09]} 37. Nxf6 {[%clk 0:00:17]}  Rxf6 {[%clk 0:01:04]} 38. Rxf6 {[%clk 0:00:16]}  Qxf6 {[%clk 0:01:01]} 39. Kg2 {[%clk 0:00:16]}  Qc6+ {[%clk 0:01:01]} 40. f3 {[%clk 0:00:15]}  Rxd1 {[%clk 0:00:57]} 41. Qxd1 {[%clk 0:00:15]}  Qd7 {[%clk 0:00:56]} 42. Kf2 {[%clk 0:00:14]}  Qd3 {[%clk 0:00:56]} 43. g4 {[%clk 0:00:13]}  h6 {[%clk 0:00:56]} 44. h4 {[%clk 0:00:12]}  a5 {[%clk 0:00:54]} 45. h5 {[%clk 0:00:12]}  b4 {[%clk 0:00:55]} 46. Qe2 {[%clk 0:00:11]}  d1=Q {[%clk 0:00:52]} 0-1


[Site "https://www.chess.com"]

[Event "Titled Tuesday Blitz October 11 Early 2022"]
[White "Cruz Lledo, Pablo"]
[Black "Manon-og, Ramon Jr."]
[WhiteFideId "2297361"]
[BlackFideId "5200776"]
[WhiteElo "2304"]
[BlackElo "2233"]
[Result "1-0"]
[Round "01"]
[TimeControl "180+1"]
[Date "2022.10.12"]
[WhiteClock "0:00:03"]
[BlackClock "0:00:06"]

1. Nf3 {[%clk 0:02:59]}  Nf6 {[%clk 0:02:59]} 2. c4 {[%clk 0:02:58]}  g6 {[%clk 0:02:58]} 3. b3 {[%clk 0:02:58]}  Bg7 {[%clk 0:02:58]} 4. Bb2 {[%clk 0:02:58]}  O-O {[%clk 0:02:59]} 5. e3 {[%clk 0:02:58]}  d6 {[%clk 0:02:59]} 6. Be2 {[%clk 0:02:58]}  b6 {[%clk 0:03:00]} 7. O-O {[%clk 0:02:58]}  Bb7 {[%clk 0:03:01]} 8. d3 {[%clk 0:02:57]}  Nbd7 {[%clk 0:03:00]} 9. Nbd2 {[%clk 0:02:57]}  Re8 {[%clk 0:03:00]} 10. a3 {[%clk 0:02:56]}  a5 {[%clk 0:02:59]} 11. Ra2 {[%clk 0:02:56]}  e5 {[%clk 0:03:00]} 12. Qa1 {[%clk 0:02:53]}  Nc5 {[%clk 0:02:59]} 13. b4 {[%clk 0:02:50]}  Na4 {[%clk 0:02:59]} 14. e4 {[%clk 0:02:46]}  Nxb2 {[%clk 0:02:58]} 15. Qxb2 {[%clk 0:02:45]}  Nh5 {[%clk 0:02:54]} 16. g3 {[%clk 0:02:42]}  Qd7 {[%clk 0:02:53]} 17. Rc1 {[%clk 0:02:38]}  f5 {[%clk 0:02:51]} 18. c5 {[%clk 0:02:36]}  fxe4 {[%clk 0:02:50]} 19. dxe4 {[%clk 0:02:31]}  Bh6 {[%clk 0:02:49]} 20. bxa5 {[%clk 0:02:05]}  Rxa5 {[%clk 0:02:34]} 21. cxb6 {[%clk 0:02:04]}  c5 {[%clk 0:02:33]} 22. Rd1 {[%clk 0:01:55]}  Kh8 {[%clk 0:02:31]} 23. Nc4 {[%clk 0:01:51]}  Rb5 {[%clk 0:02:15]} 24. Qc3 {[%clk 0:01:46]}  Bxe4 {[%clk 0:01:36]} 25. Ncxe5 {[%clk 0:01:42]}  Bg7 {[%clk 0:01:27]} 26. Nxd7 {[%clk 0:01:08]}  Bxc3 {[%clk 0:01:27]} 27. Bxb5 {[%clk 0:01:08]}  Bxf3 {[%clk 0:01:26]} 28. Rc1 {[%clk 0:01:07]}  Bd4 {[%clk 0:01:19]} 29. Ne5 {[%clk 0:00:58]}  Rxe5 {[%clk 0:01:15]} 30. a4 {[%clk 0:00:54]}  Bd5 {[%clk 0:00:37]} 31. a5 {[%clk 0:00:44]}  Bxa2 {[%clk 0:00:35]} 32. b7 {[%clk 0:00:41]}  Rf5 {[%clk 0:00:17]} 33. b8=Q+ {[%clk 0:00:37]}  Kg7 {[%clk 0:00:17]} 34. Rf1 {[%clk 0:00:30]}  Bd5 {[%clk 0:00:16]} 35. Qxd6 {[%clk 0:00:23]}  Rg5 {[%clk 0:00:15]} 36. Bc6 {[%clk 0:00:17]}  Bc4 {[%clk 0:00:13]} 37. Rc1 {[%clk 0:00:12]}  Bd3 {[%clk 0:00:13]} 38. a6 {[%clk 0:00:07]}  Rf5 {[%clk 0:00:13]} 39. Rf1 {[%clk 0:00:03]}  Bxf1 {[%clk 0:00:12]} 40. Kxf1 {[%clk 0:00:04]}  Rxf2+ {[%clk 0:00:11]} 41. Ke1 {[%clk 0:00:04]}  Ra2 {[%clk 0:00:09]} 42. Qd7+ {[%clk 0:00:04]}  Kh6 {[%clk 0:00:09]} 43. a7 {[%clk 0:00:04]}  Bf2+ {[%clk 0:00:07]} 44. Kd1 {[%clk 0:00:04]}  Nf6 {[%clk 0:00:06]} 45. Qf7 {[%clk 0:00:03]}  Ng4 {[%clk 0:00:06]} 46. Qxa2 {[%clk 0:00:03]}  Ne3+ {[%clk 0:00:07]} 47. Ke2 {[%clk 0:00:03]}  Ng4 {[%clk 0:00:05]} 48. Bf3 {[%clk 0:00:03]}  Ne5 {[%clk 0:00:06]} 49. Kxf2 {[%clk 0:00:03]}  Nd3+ {[%clk 0:00:06]} 50. Kg1 {[%clk 0:00:03]}  Nb4 {[%clk 0:00:06]} 51. Qc4 {[%clk 0:00:03]}  Nc2 {[%clk 0:00:06]} 52. Qxc2 {[%clk 0:00:03]} 1-0


[Site "https://www.chess.com"]

[Event "Titled Tuesday Blitz October 11 Early 2022"]
[White "De Silva, L M S T"]
[Black "Rangel, Daniel"]
[WhiteFideId "9953698"]
[BlackFideId "2124475"]
[WhiteElo "2416"]
[BlackElo "2225"]
[Result "1-0"]
[Round "01"]
[TimeControl "180+1"]
[Date "2022.10.12"]
[WhiteClock "0:00:11"]
[BlackClock "0:00:07"]

1. e4 {[%clk 0:02:59]}  c5 {[%clk 0:02:59]} 2. Nf3 {[%clk 0:02:58]}  g6 {[%clk 0:02:59]} 3. d4 {[%clk 0:02:58]}  cxd4 {[%clk 0:03:00]} 4. Nxd4 {[%clk 0:02:58]}  Bg7 {[%clk 0:03:00]} 5. c4 {[%clk 0:02:59]}  Nc6 {[%clk 0:03:00]} 6. Be3 {[%clk 0:02:56]}  Nf6 {[%clk 0:02:59]} 7. Nc3 {[%clk 0:02:56]}  O-O {[%clk 0:02:59]} 8. Be2 {[%clk 0:02:56]}  Nxd4 {[%clk 0:02:59]} 9. Bxd4 {[%clk 0:02:56]}  d6 {[%clk 0:03:00]} 10. O-O {[%clk 0:02:55]}  Bd7 {[%clk 0:02:59]} 11. Qd2 {[%clk 0:02:40]}  Bc6 {[%clk 0:02:57]} 12. Bd3 {[%clk 0:02:40]}  Nd7 {[%clk 0:02:53]} 13. Bxg7 {[%clk 0:02:40]}  Kxg7 {[%clk 0:02:54]} 14. f4 {[%clk 0:02:40]}  Qb6+ {[%clk 0:02:48]} 15. Kh1 {[%clk 0:02:39]}  a5 {[%clk 0:02:48]} 16. b3 {[%clk 0:02:35]}  Nc5 {[%clk 0:02:46]} 17. Bc2 {[%clk 0:02:34]}  Qc7 {[%clk 0:02:40]} 18. Rf3 {[%clk 0:02:32]}  f5 {[%clk 0:02:34]} 19. exf5 {[%clk 0:02:28]}  Bxf3 {[%clk 0:02:32]} 20. gxf3 {[%clk 0:02:22]}  Qc6 {[%clk 0:02:06]} 21. Nd5 {[%clk 0:02:19]}  gxf5 {[%clk 0:01:51]} 22. Rg1+ {[%clk 0:01:29]}  Kf7 {[%clk 0:01:48]} 23. Qg2 {[%clk 0:01:29]}  Rg8 {[%clk 0:01:39]} 24. Qh3 {[%clk 0:01:28]}  Rxg1+ {[%clk 0:01:39]} 25. Kxg1 {[%clk 0:01:29]}  Rg8+ {[%clk 0:01:38]} 26. Kh1 {[%clk 0:01:28]}  e6 {[%clk 0:01:18]} 27. Qxh7+ {[%clk 0:00:54]}  Rg7 {[%clk 0:01:13]} 28. Qh5+ {[%clk 0:00:53]}  Kf8 {[%clk 0:00:57]} 29. Qh8+ {[%clk 0:00:50]}  Kf7 {[%clk 0:00:55]} 30. Qh5+ {[%clk 0:00:50]}  Kg8 {[%clk 0:00:43]} 31. Nf6+ {[%clk 0:00:48]}  Kf8 {[%clk 0:00:43]} 32. Bd1 {[%clk 0:00:37]}  Nd3 {[%clk 0:00:32]} 33. h4 {[%clk 0:00:11]}  Nf2+ {[%clk 0:00:29]} 34. Kh2 {[%clk 0:00:11]}  Nxd1 {[%clk 0:00:29]} 35. Qh8+ {[%clk 0:00:09]}  Kf7 {[%clk 0:00:28]} 36. Nh5 {[%clk 0:00:09]}  Rg8 {[%clk 0:00:10]} 37. Qf6+ {[%clk 0:00:09]}  Ke8 {[%clk 0:00:10]} 38. Qxe6+ {[%clk 0:00:10]}  Kd8 {[%clk 0:00:10]} 39. Qxg8+ {[%clk 0:00:10]}  Kc7 {[%clk 0:00:10]} 40. Qd5 {[%clk 0:00:10]}  Qb6 {[%clk 0:00:10]} 41. Qxd1 {[%clk 0:00:10]}  Qf2+ {[%clk 0:00:10]} 42. Kh3 {[%clk 0:00:10]}  a4 {[%clk 0:00:09]} 43. Ng3 {[%clk 0:00:11]}  a3 {[%clk 0:00:07]} 44. h5 {[%clk 0:00:11]}  Qxa2 {[%clk 0:00:07]} 45. Nxf5 {[%clk 0:00:10]}  Qb2 {[%clk 0:00:07]} 46. Qxd6+ {[%clk 0:00:10]}  Kc8 {[%clk 0:00:07]} 47. Ne7# {[%clk 0:00:11]} 1-0


[Site "https://www.chess.com"]

[Event "Titled Tuesday Blitz October 11 Early 2022"]
[White "Di Nicolantonio, Lucas"]
[Black "Flis, Pawel"]
[WhiteFideId "680460"]
[BlackFideId "1112864"]
[WhiteElo "2381"]
[BlackElo "1836"]
[Result "1-0"]
[Round "01"]
[TimeControl "180+1"]
[Date "2022.10.12"]
[WhiteClock "0:00:05"]
[BlackClock "0:00:07"]

1. e4 {[%clk 0:02:57]}  c5 {[%clk 0:02:50]} 2. Nf3 {[%clk 0:02:57]}  d6 {[%clk 0:02:50]} 3. d4 {[%clk 0:02:56]}  Nf6 {[%clk 0:02:50]} 4. Nc3 {[%clk 0:02:54]}  cxd4 {[%clk 0:02:51]} 5. Qxd4 {[%clk 0:02:54]}  a6 {[%clk 0:02:51]} 6. Bg5 {[%clk 0:02:42]}  Nc6 {[%clk 0:02:50]} 7. Qd2 {[%clk 0:02:42]}  e6 {[%clk 0:02:50]} 8. O-O-O {[%clk 0:02:40]}  Be7 {[%clk 0:02:50]} 9. Bf4 {[%clk 0:02:36]}  e5 {[%clk 0:02:32]} 10. Bg5 {[%clk 0:02:32]}  Be6 {[%clk 0:02:32]} 11. Bxf6 {[%clk 0:02:32]}  Bxf6 {[%clk 0:02:31]} 12. Nd5 {[%clk 0:02:30]}  O-O {[%clk 0:02:24]} 13. Kb1 {[%clk 0:02:28]}  Rc8 {[%clk 0:02:16]} 14. Bc4 {[%clk 0:02:18]}  b5 {[%clk 0:02:14]} 15. Bb3 {[%clk 0:02:16]}  Na5 {[%clk 0:02:06]} 16. Nxf6+ {[%clk 0:02:15]}  gxf6 {[%clk 0:02:03]} 17. Qxd6 {[%clk 0:02:12]}  Nxb3 {[%clk 0:02:01]} 18. axb3 {[%clk 0:02:08]}  Qa5 {[%clk 0:01:51]} 19. Qe7 {[%clk 0:01:42]}  Kg7 {[%clk 0:01:44]} 20. Rd3 {[%clk 0:01:12]}  Rc7 {[%clk 0:01:43]} 21. Qa3 {[%clk 0:01:02]}  Qb6 {[%clk 0:01:33]} 22. Nh4 {[%clk 0:00:55]}  Rfc8 {[%clk 0:01:20]} 23. Rg3+ {[%clk 0:00:51]}  Kh8 {[%clk 0:01:19]} 24. Rf3 {[%clk 0:00:16]}  Rxc2 {[%clk 0:01:04]} 25. Rxf6 {[%clk 0:00:16]}  Rxf2 {[%clk 0:00:57]} 26. Qe7 {[%clk 0:00:10]}  Qc5 {[%clk 0:00:27]} 27. Qxc5 {[%clk 0:00:09]}  Rxc5 {[%clk 0:00:26]} 28. Rxf2 {[%clk 0:00:09]}  Bxb3 {[%clk 0:00:27]} 29. Rc1 {[%clk 0:00:09]}  Ba2+ {[%clk 0:00:21]} 30. Kxa2 {[%clk 0:00:08]}  Rxc1 {[%clk 0:00:21]} 31. Rxf7 {[%clk 0:00:09]}  Kg8 {[%clk 0:00:21]} 32. Re7 {[%clk 0:00:08]}  Rc5 {[%clk 0:00:19]} 33. Nf5 {[%clk 0:00:08]}  a5 {[%clk 0:00:18]} 34. g4 {[%clk 0:00:07]}  a4 {[%clk 0:00:17]} 35. Ka3 {[%clk 0:00:07]}  Kf8 {[%clk 0:00:13]} 36. Kb4 {[%clk 0:00:06]}  Rc2 {[%clk 0:00:11]} 37. Kxb5 {[%clk 0:00:05]}  Rxb2+ {[%clk 0:00:10]} 38. Kc5 {[%clk 0:00:05]}  Rxh2 {[%clk 0:00:11]} 39. Ra7 {[%clk 0:00:04]}  Rc2+ {[%clk 0:00:09]} 40. Kd5 {[%clk 0:00:05]}  Rg2 {[%clk 0:00:07]} 41. Ke6 {[%clk 0:00:05]} 1-0


[Site "https://www.chess.com"]